Cogmind - Beta 10 X2 @@@ ROGUE MODE // 2020.09.06 @ 19:42:11 Player: Stryker Result: Self-destructed Performance ------------- Evolutions (2) 1000 Regions Visited (5) 1000 Robots Destroyed (31) 155 Value Destroyed (569) 569 Prototype IDs (3) 60 Alien Tech Used (0) 0 Bonus (53) 53 TOTAL SCORE: 2837 Bonus ------- Follower Combat Kills 53 Cogmind --------- Core Integrity 550/550 Matter 300/300 Energy 124/125 System Corruption 13% Temperature Cool (0) Movement Treading (260) Ox5 Location -8/Materials Parts ------- > --- POWER (1) -------- Light Ion Engine > --- PROPULSION (3) --- Light Treads > --- UTILITY (5) ------ High-capacity Storage Unit Humpback > --- WEAPON (2) ------- Light EM Pulse Cannon > --- INVENTORY (32) --- Light Treads Advanced Treads Wheel Compact Wheel High-capacity Storage Unit High-capacity Storage Unit High-capacity Storage Unit Humpback Humpback Decoy Drone Bay (16/16) Medium Laser Light EM Pulse Cannon Light EM Pulse Cannon Assault Rifle Assault Rifle Light Assault Rifle Battle Cannon Grenade Launcher Rocket Launcher Peak State ------------ > --- POWER ------------ Light Ion Engine > --- PROPULSION ------- Light Treads Compact Wheel > --- UTILITY ---------- High-capacity Storage Unit Humpback Decoy Drone Bay > --- WEAPON ----------- Light EM Pulse Cannon Assault Rifle > --- INVENTORY -------- Light Treads Wheel Compact Wheel High-capacity Storage Unit High-capacity Storage Unit High-capacity Storage Unit Humpback Humpback High-capacity Matter Pod Medium Laser Light EM Pulse Cannon Light EM Pulse Cannon Assault Rifle Light Assault Rifle Battle Cannon Grenade Launcher Rocket Launcher Mining Laser [Rating: 25] Favorites ----------- Power Light Ion Engine Engine Light Ion Engine Propulsion Light Treads Treads Light Treads Leg Aluminum Leg Wheel Compact Wheel Utility Large Storage Unit Device Heat Sink Storage Large Storage Unit Processor Transport Network Coupler Weapon Light EM Pulse Cannon Energy Gun EM Shotgun Energy Cannon Light EM Pulse Cannon Ballistic Gun Assault Rifle Launcher Grenade Launcher Special Weapon Mining Laser Build | -11 -10 -10 -10 -9 -8 ------- Run | Scr Mat Min Exi Min Mat Slots Evolved 4 | . . . . . 4 Power . | . . . . . . Propulsion 1 | . . . . . 1 Utility 3 | . . . . . 3 Weapon . | . . . . . . Parts Attached 35 | 3 21 4 2 1 4 Power 3 | . 2 1 . . . Engine 3 | . 2 1 . . . Core . | . . . . . . Reactor . | . . . . . . Propulsion 10 | 2 6 1 . 1 . Treads 5 | 1 3 1 . . . Leg . | . . . . . . Wheel 5 | 1 3 . . 1 . Hover . | . . . . . . Flight . | . . . . . . Utility 12 | 1 6 . 2 . 3 Device 3 | 1 1 . . . 1 Storage 8 | . 4 . 2 . 2 Processor 1 | . 1 . . . . Hackware . | . . . . . . Protection . | . . . . . . Artifact . | . . . . . . Weapon 10 | . 7 2 . . 1 Energy Gun 5 | . 5 . . . . Energy Cannon 2 | . 1 1 . . . Ballistic Gun 1 | . . 1 . . . Ballistic Cannon . | . . . . . . Launcher 1 | . 1 . . . . Special Weapon 1 | . . . . . 1 Impact Weapon . | . . . . . . Slashing Weapon . | . . . . . . Piercing Weapon . | . . . . . . Special Melee Weapon . | . . . . . . Unidentified Prototypes 1 | . . . . . 1 Parts Lost 9 | . 2 3 . 1 3 Power 1 | . . 1 . . . Propulsion 4 | . 1 1 . 1 1 Utility 1 | . . . . . 1 Weapon 3 | . 1 1 . . 1 Highest Loss Streak 3 | . 2 3 . 1 3 Average Slot Usage (%) 95 | . 98 99 96 85 72 Engine 13 | . 14 14 14 14 9 Treads 20 | . 21 17 28 18 9 Wheel 6 | . 5 10 . 10 9 Storage 21 | . 17 28 24 14 27 Processor 2 | . 9 . . . . Energy Gun 10 | . 23 10 . . . Energy Cannon 7 | . . 6 14 14 9 Ballistic Gun 6 | . . 2 14 14 6 Launcher 3 | . 3 7 . . . Naked Turns . | . . . . . . Heaviest Build 125 | 10 57 58 89 89 125 Greatest Support 40 | 20 40 40 40 40 16 Greatest Overweight (x) 7 | . 3 3 2 5 7 Average Overweight (x) 2 | . . 2 1 4 7 Largest Inventory Capacity 32 | 6 18 18 24 24 32 Average Capacity 17 | 6 11 18 18 24 31 Most Carried 23 | 6 16 18 20 23 22 Average Carried 15 | 5 10 17 14 21 21 Final Capacity 32 | 6 18 18 24 24 32 Final Carried 23 | 6 16 15 20 23 22 Class Distribution -------------------- 76% | Mutant 23% | Hauler-Mutant Dominant Class ---------------- Mutant | -10/Materials Mutant | -10/Mines Mutant | -10/Exiles Hauler-Mutant | -9/Mines Hauler-Mutant | -8/Materials Resources | -11 -10 -10 -10 -9 -8 ----------- Run | Scr Mat Min Exi Min Mat Matter Collected 729 | 230 240 184 20 55 . Remotely 55 | 55 . . . . . Salvage Created 887 | 73 580 150 . 84 . Parts 61 | 5 37 13 . 6 . Haulers Intercepted 2 | . 2 . . . . Recyclers Shooed 1 | . 1 . . . . Parts Field Recycled . | . . . . . . Retrieved Matter . | . . . . . . Parts Self-Destructed . | . . . . . . Prevented . | . . . . . . Kills | -11 -10 -10 -10 -9 -8 ------- Run | Scr Mat Min Exi Min Mat Combat Hostiles Destroyed 26 | . 14 7 . 5 . Guns 13 | . 11 1 . 1 . Cannons 5 | . . 2 . 3 . AOE 8 | . 3 4 . 1 . Classes Destroyed 6 | 2 4 . . . . Tunneler 1 | 1 . . . . . Hauler 2 | . 2 . . . . Recycler 1 | 1 . . . . . Watcher 1 | . 1 . . . . Swarmer 16 | . 6 5 . 5 . Grunt 10 | . 8 2 . . . Best Kill Streak 6 | 1 6 3 . 4 . Combat Bots Only 4 | . 4 3 . 4 . Max Kills in Single Turn 2 | 1 2 2 . 1 . Gunslinging . | . . . . . . Exploded 2 | . 2 2 . 1 . Melee . | . . . . . . Uniques/NPCs Destroyed . | . . . . . . Combat | -11 -10 -10 -10 -9 -8 -------- Run | Scr Mat Min Exi Min Mat Damage Taken 1218 | . 490 317 . 147 264 Core 144 | . 100 29 . 15 . Absorbed by Shields . | . . . . . . Core Remaining (%) 71 | 100 . . . 42 . Volleys Fired 70 | 5 43 10 . 10 2 Largest 2 | 2 2 2 . 2 1 Hottest 101 | 80 90 101 . 76 100 Shots Fired 122 | 10 76 14 . 20 2 Gun 96 | 10 72 4 . 10 . Cannon 18 | . . 8 . 10 . Launcher 6 | . 4 2 . . . Special 2 | . . . . . 2 Kinetic 10 | . . . . 10 . Thermal 51 | 10 39 . . . 2 Explosive 6 | . 4 2 . . . Electromagnetic 55 | . 33 12 . 10 . Robot Hit Streak 18 | 4 12 18 . 5 . Robot Miss Streak 4 | 1 4 1 . 2 . Penetration Max . | . . . . . . Secondary Targets 4 | . 4 . . . . Max Gunslinging Chain 1 | . 1 . . . . Shots Hit Robots 73 | 7 46 9 . 11 . Core Hits 39 | 3 22 9 . 5 . Critical Hits . | . . . . . . Critical Kills . | . . . . . . Critical Parts Destroyed . | . . . . . . Melee Attacks . | . . . . . . Impact . | . . . . . . Slashing . | . . . . . . Piercing . | . . . . . . Sneak Attacks . | . . . . . . Combat Hostiles . | . . . . . . Follow-up Attacks . | . . . . . . Damage Inflicted 1549 | 85 833 415 . 216 . Guns 806 | 85 617 63 . 41 . Cannons 239 | . . 101 . 138 . Explosions 504 | . 216 251 . 37 . Melee . | . . . . . . Ramming . | . . . . . . Kinetic 41 | . . . . 41 . Thermal 694 | 85 472 100 . 37 . Explosive 179 | . 28 151 . . . Electromagnetic 635 | . 333 164 . 138 . Impact . | . . . . . . Slashing . | . . . . . . Piercing . | . . . . . . Highest Corruption . | . . . . . . Average Corruption . | . . . . . . Corruption Purged . | . . . . . . Overload Shots . | . . . . . . Overflow Damage 62 | . . 36 . 26 . Projectiles . | . . . . . . Explosions 62 | . . 36 . 26 . Melee . | . . . . . . Knockbacks . | . . . . . . Impact . | . . . . . . Kinetic . | . . . . . . Secondary . | . . . . . . Self-Inflicted Damage 149 | . 52 66 . 31 . Shots 4 | . 1 2 . 1 . Rammed . | . . . . . . Targets Rammed . | . . . . . . Kicked . | . . . . . . Crushed . | . . . . . . Highest Temperature 222 | 54 222 78 . 102 . Average Temperature 54 | 25 66 35 . 35 . Received Heat Transfer 234 | . 117 117 . . . Siege Activations . | . . . . . . Robots Corrupted . | . . . . . . Combat Hostiles . | . . . . . . Parts Fried 1 | . . 1 . . . Impact Corruptions . | . . . . . . Robots Melted . | . . . . . . Combat Hostiles . | . . . . . . Parts Melted 1 | . 1 . . . . Heat Transferred 1314 | 200 964 150 . . . Parts Sabotaged . | . . . . . . Parts Stolen . | . . . . . . Parts Stripped . | . . . . . . Power Chain Reactions 6 | . 3 2 . 1 . Missiles Intercepted . | . . . . . . Alert | -11 -10 -10 -10 -9 -8 ------- Run | Scr Mat Min Exi Min Mat Peak Influence 239 | 10 239 109 . 146 58 Average Influence 40 | 4 48 43 . 27 55 Maximum Alert Level 1 | . 1 . . . . Low Security (%) 98 | 100 97 100 . 100 100 Level 1 1 | . 2 . . . . Level 2 . | . . . . . . Level 3 . | . . . . . . Level 4 . | . . . . . . Level 5 . | . . . . . . High Security . | . . . . . . Max Security . | . . . . . . Squads Dispatched 5 | . 4 . . 1 . Investigation 2 | . 1 . . 1 . Extermination . | . . . . . . Reinforcement 3 | . 3 . . . . Assault . | . . . . . . Garrison . | . . . . . . Intercept . | . . . . . . Construction Impeded . | . . . . . . Haulers Reinforced . | . . . . . . Stealth | -11 -10 -10 -10 -9 -8 --------- Run | Scr Mat Min Exi Min Mat Distress Signals 2 | . 2 . . . . Communications Jammed . | . . . . . . Distress Signals . | . . . . . . Times Spotted 45 | . 28 8 . 9 . Peak Tracking Total 6 | . 6 3 . 4 . Tactical Retreats 1 | . 1 . . . . Traps | -11 -10 -10 -10 -9 -8 ------- Run | Scr Mat Min Exi Min Mat Traps Triggered 1 | . 1 . . . . Indirectly . | . . . . . . Trap Hack Attempts . | . . . . . . Triggered . | . . . . . . Disarmed . | . . . . . . Reprogrammed . | . . . . . . Reused . | . . . . . . Traps Extracted . | . . . . . . Installed . | . . . . . . Triggered . | . . . . . . Machines | -11 -10 -10 -10 -9 -8 ---------- Run | Scr Mat Min Exi Min Mat Machines Disabled 1 | . . 1 . . . Max in Single Turn 1 | . . 1 . . . Machines Sabotaged . | . . . . . . Garrisons Compromised . | . . . . . . Overloaded Fab Kills . | . . . . . . Fab Network Shutdowns . | . . . . . . Hacking | -11 -10 -10 -10 -9 -8 --------- Run | Scr Mat Min Exi Min Mat Machines Accessed 7 | . 4 . 1 2 . Terminals 5 | . 4 . . 1 . Fabricators . | . . . . . . Repair Stations . | . . . . . . Recycling Units . | . . . . . . Scanalyzers . | . . . . . . Garrison Access . | . . . . . . Total Hacks 21 | . 15 . 1 5 . Successful 12 | . 8 . 1 3 . Failed 9 | . 7 . . 2 . Catastrophic 1 | . . . . 1 . Database Lockouts . | . . . . . . Manual 16 | . 13 . . 3 . Terminals 19 | . 15 . . 4 . Fabricators . | . . . . . . Repair Stations . | . . . . . . Recycling Units . | . . . . . . Scanalyzers . | . . . . . . Garrison Access . | . . . . . . Terminal Hacks 9 | . 5 . 1 3 . Record 1 | . . . 1 . . Part Schematic 2 | . 1 . . 1 . Robot Analysis 1 | . 1 . . . . Prototype ID Bank 1 | . 1 . . . . Open Door 1 | . . . . 1 . Alert Level 1 | . . . . 1 . Unreport Threat 1 | . 1 . . . . Reinforcement Status 1 | . 1 . . . . Fabricator Hacks . | . . . . . . Repair Station Hacks . | . . . . . . Recycling Unit Hacks . | . . . . . . Scanalyzer . | . . . . . . Garrison Access Hacks . | . . . . . . Unauthorized Hacks 3 | . 3 . . . . Terminals 3 | . 3 . . . . Track 1 | . 1 . . . . Botnet 2 | . 2 . . . . Fabricators . | . . . . . . Repair Stations . | . . . . . . Recycling Units . | . . . . . . Scanalyzers . | . . . . . . Garrison Access . | . . . . . . Data Cores Recovered . | . . . . . . Used . | . . . . . . Hacking Detections 5 | . 4 . . 1 . Full Trace Events 2 | . 1 . . 1 . Feedback Events . | . . . . . . Feedback Blocked . | . . . . . . Robot Schematics Acquired . | . . . . . . Robots Built . | . . . . . . Matter . | . . . . . . Time . | . . . . . . Total Robot Build Rating . | . . . . . . Part Schematics Acquired 2 | . 1 . . 1 . Parts Built . | . . . . . . Matter . | . . . . . . Time . | . . . . . . Total Part Build Rating . | . . . . . . Parts Repaired . | . . . . . . Time . | . . . . . . Parts Recycled . | . . . . . . Recycled Matter . | . . . . . . Retrieved Matter . | . . . . . . Retrieved Components . | . . . . . . Parts Scanalyzed . | . . . . . . Part Schematics Acquired . | . . . . . . Parts Damaged . | . . . . . . Bothacking | -11 -10 -10 -10 -9 -8 ------------ Run | Scr Mat Min Exi Min Mat Used RIF Installer . | . . . . . . Robots Hacked . | . . . . . . Non-combat . | . . . . . . Combat . | . . . . . . Robot Hacks Applied . | . . . . . . Relay Couplers Released . | . . . . . . Robots Rewired . | . . . . . . Allies Hacked . | . . . . . . Hacks Repelled . | . . . . . . Allies | -11 -10 -10 -10 -9 -8 -------- Run | Scr Mat Min Exi Min Mat Total Allies 4 | . . 1 . 3 . Largest Group 3 | . . 1 . 3 3 Highest-Rated Group 40 | . . 31 . 40 40 Highest-Rated Ally 31 | . . 31 . 16 16 Total Orders 1 | . . . . . 1 EXPLORE 1 | . . . . . 1 Ally Attacks 10 | . . 2 . 8 . Total Damage 144 | . . 43 . 101 . Kills 5 | . . 1 . 4 . Allies Corrupted . | . . . . . . Allies Melted . | . . . . . . Intel | -11 -10 -10 -10 -9 -8 ------- Run | Scr Mat Min Exi Min Mat Robot Analysis Total 1 | . 1 . . . . Derelict Logs Recovered 2 | . . 2 . . . Drone Launches 1 | . . . . . 1 Drone Recoveries 1 | . . . . . 1 Exploration | -11 -10 -10 -10 -9 -8 ------------- Run | Scr Mat Min Exi Min Mat Turns Passed 3673 | 43 1105 1006 792 695 32 Spaces Moved 2035 | 21 608 583 421 393 9 Core . | . . . . . . Treads 996 | . 272 213 421 90 . Legs 7 | 7 . . . . . Wheels 1032 | 14 336 370 . 303 9 Hover . | . . . . . . Flight . | . . . . . . Fastest Speed 100 | 100 100 130 160 150 170 Average Speed 154 | 106 136 151 182 161 170 Slowest Speed 200 | 120 180 200 200 200 170 Overloaded Moves . | . . . . . . Propulsion Burnouts . | . . . . . . Robots Hopped . | . . . . . . Cave-ins Triggered 1 | . . . . . 1 Exploration Rate (%) 58 | 3 98 97 81 72 2 Regions Visited 5 Branch Regions 3 Pre-discovered Areas 1 | . . . 1 . . Known Exits Taken . | . . . . . . Unknown Exits Taken 5 | 1 1 1 1 1 . Scrap Searched 4 | . . 4 . . . Spaces Dug 40 | . 25 13 . . 2 Terrain Destroyed 63 | . 31 25 . 5 2 Melee . | . . . . . . Projectile 2 | . . . . . 2 AOE 61 | . 31 25 . 5 . Actions | -11 -10 -10 -10 -9 -8 --------- Run | Scr Mat Min Exi Min Mat Total 2435 | 31 810 694 447 434 19 Wait 231 | . 107 92 2 28 2 Move 2030 | 20 607 582 420 392 9 Hop . | . . . . . . Pick Up 41 | 1 15 4 17 3 1 Fast Attach 10 | 2 7 . 1 . . Attach 10 | 1 2 3 . 1 3 Detach 3 | . 2 . . . 1 Swap 15 | . 12 1 1 . 1 Drop 25 | 2 15 2 6 . . Fire 70 | 5 43 10 . 10 2 Melee . | . . . . . . Ram . | . . . . . . Kick . | . . . . . . Crush . | . . . . . . Escape Stasis . | . . . . . . Rewire . | . . . . . . Trap . | . . . . . . Miscellaneous . | . . . . . . Route ------- -11/Scrapyard -10/Materials (discovered 4 exits: [*Mat x3] / [*Min]) -10/Mines (discovered 3 exits: [*Mat x2] / *Exi) -10/Exiles -9/Mines -8/Materials History --------- Turn | Location | Event 1 | -11/Scrapyard | Discovered new exit (range 3) 44 | -11/Scrapyard | Entered Materials 318 | -10/Materials | Build established: Mutant 453 | -10/Materials | Discovered new exit (range 9) 715 | -10/Materials | Discovered new exit (range 12) 843 | -10/Materials | Discovered new exit (range 11) 940 | -10/Materials | Discovered new exit (range 16) 1149 | -10/Materials | Entered Mines 1150 | -10/Mines | Assembled infested the area 1289 | -10/Mines | Learned Materials terminal intel 1472 | -10/Mines | Received a Mining Laser from a helpful Derelict 1624 | -10/Mines | Discovered new exit (range 3) 1665 | -10/Mines | Discovered new exit (range 5) 1939 | -10/Mines | Core integrity fell below 50% 1963 | -10/Mines | Lost 3 parts (1p1n1w) 2022 | -10/Mines | Discovered new exit (range 5) 2155 | -10/Mines | Entered Exiles 2197 | -10/Exiles | Met 8R-AWN 2231 | -10/Exiles | Met EX-HEX 2282 | -10/Exiles | Met EX-BIN 2350 | -10/Exiles | Met EX-DEC 2361 | -10/Exiles | Learned location of Zion (-6) 2468 | -10/Exiles | Visited The Gauntlet 2927 | -10/Exiles | Discovered new exit (range 11) 2947 | -10/Exiles | Entered Mines 2994 | -9/Mines | Found the Drone Emporium 3005 | -9/Mines | Found Prototype Device 3094 | -9/Mines | Build established: Hauler-Mutant 3262 | -9/Mines | Received a Rocket Launcher from a helpful Derelict 3437 | -9/Mines | Assisted by bots powering up and referring to "LRC-V3" 3547 | -9/Mines | A weapon hastily lodged in a ceiling crevice suddenly fell to the ground 3617 | -9/Mines | Discovered new exit (range 5) 3642 | -9/Mines | Entered Materials 3642 | -8/Materials | Accompanied by 3 allies 3642 | -8/Materials | Evolved 4 slots: Propulsion x1, Utility x3 3642 | -8/Materials | Identified Decoy Drone Bay 3643 | -8/Materials | Loaded intel: 12 terminal locations 3674 | -8/Materials | Crushed by falling debris 3674 | -8/Materials | System corruption reached 10% 3674 | -8/Materials | Self-destructed Last Messages --------------- 03633_ ALERT: Suspicious activity at Terminal M001. Dispatching Investigation squad. 03634_ G-34 Mercenary destroyed. 03638_ Acquired 27 matter. PARAMETERS=PROPULSION_1,UTILITY_3 LOCATION=UNKNOWN GOAL=ESCAPE 03642_ Identified Decoy Drone Bay. Loading Materials terminal intel (x12)... 03644_ Decoy Drone released from Decoy Drone Bay. 03646_ Decoy Drone retrieved by Decoy Drone Bay. 03655_ Acquired Adv. Treads. 03674_ The unstable cave ceiling collapses. 03674_ Crushed by falling debris. 03674_ Mining Laser destroyed. 03674_ System corrupted by crushing effect (+3). 03674_ Hcp. Matter Pod destroyed. 03674_ System corrupted by crushing effect (+5). 03674_ Com. Wheel destroyed. 03674_ System corrupted by crushing effect (+5). Map ----- +----------------------------------------------------+ | | | | | | | | | | | | | | | | | | | | | | | | | | | | | ?????????????????????????????????????????????????? | | ??????T??????????????????????????????????????????? | | ?????????????????????????????????????????????????? | | ?????????????????????????????????????????????????? | | ?????????????????????????????????????????????????? | | ?????????????????????????????????????????????????? | | ?????????????????????????????????????????????????? | | ??????????????????????T??????????????????????????? | | ?????????????????????????????????????????????????? | | ?????????????????????# ###????#####??????????????? | | ?????????????????????# ;####### #??????????????? | | ?????????????????????# #!@g # #??????????????? | | ???????????????????????# g # #??????????????? | | ???????????????????????#g """ + #??????????????? | | ???????????????????????# """ # ???????? | | ???????????????????????# """ # ???? | | ???????????????????????# # ????? | | ???????????????????????######################????? | | ?????????????????????????????????????????????????? | | ?????????????????????????????????????????????????? | | ?????????????????????????????????????????????????? | | ?????????????????????????????????????????????????? | | ?????????????????????????????????????????????????? | | ?????????????????????????????????????????????????? | | ?????????????????????????????????????????????????? | | ?????????????????????????????????????????????????? | | ???????????????????????????????????????????????T?? | | ?????????????????????????????????????????????????? | | ?????????????????????????????????????????????????? | | ?????????????????????????????????????????????????? | | ?????????????????????????????????????????????????? | | ?????????????????????????????????????????????????? | | ?????????????????????????????????????????????????? | | ????????????????????????T????????????????????????? | | ???????"?????????????????????????????????????????? | | ???????T?????????????????????????????????????????? | +----------------------------------------------------+ Best States ------------- Heat Dissipation 35 Energy Generation 10 Energy Capacity 125 Matter Stores 470 Matter Capacity 500 Sight Range 16 Terrain Scan Density 10 Evasion (%) 40 Recoil Reduction 2 Item Schematics ----------------- Hcp. Storage Unit | -10/Materials | Hacked Hcp. Battery | -9/Mines | Hacked Robot Schematics ------------------ None Fabricated ------------ Nothing Alien Tech Used ----------------- None Achievements -------------- None Challenges ------------ None Game ------ Seed RemoteCoolingFemtoactuators Manual? 0 Play Time 00:35:12 Cumulative 902.0 hours Start 2020.09.06 @ 16:56:42 End 2020.09.06 @ 19:42:11 Sessions 3 Manual Loads 0 Difficulty Rogue Special Mode None Game No. 258 Rogue 258 Adventurer 0 Explorer 0 Win Type - Total 32 Types 21/3/5/3/0/0/0 Lore% 75 Gallery% 86 Achievement% 71 Wizard Run 0 Options --------- ASCII 0 Keyboard 1 Movement Numpad Keybinds 0 Fullscreen 1 Font 24/Smallcaps Map View 76x50 Tactical HUD 1 Map Filters NONE Filters NONE Steam 1 RUN: 0edb3ad6-7ded-40c2-b3e2-06a5c69c4192